bitfinex-derivatives/quotes_BTCF0:USTF0_20260119
["timestamp","ask_amount","ask_price","bid_price","bid_amount"]
[1768828883734,0.10220997,92936.0,92915.0,0.010769]
[1768828884823,0.010767,92929.0,92915.0,0.010769]
[1768828885532,0.10366311,92934.0,92913.0,0.30428978]
[1768828886129,0.010768,92926.0,92913.0,0.30428978]
[1768828886834,0.010768,92926.0,92913.0,0.18817741]
[1768828887331,0.010768,92921.0,92913.0,0.09688]
[1768828887634,0.010768,92922.0,92909.0,0.00236792]
[1768828887936,0.010768,92922.0,92909.0,0.01621775]
[1768828888241,0.010768,92925.0,92910.0,0.01077]
[1768828889026,0.010768,92923.0,92909.0,0.02698775]
[1768828889226,0.10225249,92930.0,92910.0,0.01077]
[1768828889533,0.19913249,92930.0,92910.0,0.20740978]
[1768828889836,0.010768,92926.0,92911.0,0.010769]
[1768828890033,0.010767,92934.0,92922.0,0.09129741]
[1768828890237,0.010767,92937.0,92922.0,0.21817778]
[1768828890536,0.010767,92935.0,92922.0,0.21817778]
[1768828891233,0.010767,92935.0,92922.0,0.10206541]
[1768828892437,0.09901727,92933.0,92909.0,0.22362753]
[1768828892632,0.09901727,92933.0,92919.0,0.010768]
[1768828893035,0.03056223,92934.0,92919.0,0.010768]
[1768828893240,0.010767,92932.0,92917.0,0.010769]
[1768828893429,0.010767,92932.0,92919.0,0.010769]
[1768828894040,0.010767,92932.0,92915.0,0.09129741]
[1768828894538,0.010767,92933.0,92920.0,0.010768]
[1768828894739,0.09688,92936.0,92917.0,0.010769]
[1768828895041,0.09688,92936.0,92916.0,0.20740978]
[1768828895634,0.010767,92931.0,92918.0,0.010769]
[1768828897846,0.010767,92931.0,92916.0,0.21817878]
[1768828898144,0.010767,92933.0,92916.0,0.20740978]
[1768828899036,0.19589727,92937.0,92918.0,0.010769]
[1768828899232,0.010767,92935.0,92918.0,0.20740978]
[1768828899447,0.09688,92939.0,92925.0,0.20740978]
[1768828899642,0.010766,92940.0,92927.0,0.21171746]
[1768828899939,0.0001614,92942.0,92931.0,0.21171646]
[1768828900146,0.010766,92945.0,92932.0,0.20094946]
[1768828900340,0.010766,92943.0,92932.0,0.20094946]
[1768828900540,0.010766,92943.0,92932.0,0.09201548]
[1768828900747,0.00930286,92941.0,92932.0,0.09201548]
[1768828900944,0.010766,92944.0,92932.0,0.09201548]
[1768828901249,0.010766,92942.0,92932.0,0.09201548]
[1768828901440,0.010765,92948.0,92932.0,0.09201548]
[1768828901635,0.0992469,92949.0,92932.0,0.09201548]
[1768828901841,0.010766,92941.0,92932.0,0.09201548]
[1768828902043,0.010766,92941.0,92928.0,0.11970098]
[1768828902240,0.09915891,92947.0,92926.0,0.09201548]
[1768828902443,0.0992469,92949.0,92926.0,0.09201548]
[1768828902444,0.09915891,92945.0,92926.0,0.09201548]
[1768828902748,0.010767,92935.0,92923.0,0.0970414]
[1768828903147,0.010767,92933.0,92923.0,0.0970414]
[1768828903349,0.010767,92936.0,92923.0,0.0970414]
[1768828903540,0.010767,92936.0,92923.0,0.1078094]
[1768828904245,0.010767,92936.0,92923.0,0.30875886]
[1768828904550,0.010767,92936.0,92924.0,0.20094946]
[1768828905746,0.09915891,92943.0,92924.0,0.20094946]
[1768828905747,0.010766,92939.0,92924.0,0.20094946]
[1768828906343,0.010767,92937.0,92924.0,0.20094946]
[1768828907840,0.010767,92937.0,92925.0,0.010768]
[1768828908035,0.010766,92940.0,92925.0,0.21171746]
[1768828908649,0.010766,92940.0,92926.0,0.010768]
[1768828909050,0.010766,92942.0,92928.0,0.010768]
[1768828909246,0.03064092,92946.0,92927.0,0.20094946]
[1768828909446,0.010764,92955.0,92939.0,0.20094946]
[1768828909447,0.010765,92953.0,92939.0,0.20094946]
[1768828909754,0.09688,92962.0,92953.0,0.20094946]
[1768828909940,0.09688,92965.0,92953.0,0.20094946]
[1768828910452,0.09688,92965.0,92949.0,0.10893398]
[1768828910635,0.09688,92965.0,92949.0,0.10909538]
[1768828911039,0.09688,92965.0,92949.0,0.0001614]
[1768828911751,0.010764,92959.0,92949.0,0.0001614]
[1768828912341,0.010764,92957.0,92949.0,0.0001614]
[1768828912845,0.010764,92960.0,92949.0,0.0001614]
[1768828913653,0.010763,92963.0,92949.0,0.0001614]
[1768828915142,0.1979372,92964.0,92949.0,0.0001614]
[1768828915345,0.1979372,92964.0,92937.0,0.20541565]
[1768828915346,0.09618985,92960.0,92939.0,0.11930165]
[1768828915550,0.010764,92957.0,92941.0,0.010766]
[1768828916553,0.010764,92955.0,92940.0,0.09505231]
[1768828917267,0.00236702,92944.0,92940.0,0.09505231]
[1768828919455,0.010765,92953.0,92941.0,0.09505231]
[1768828920152,0.010765,92953.0,92941.0,0.20358796]
[1768828920350,0.09938084,92961.0,92942.0,0.10853565]
[1768828920547,0.09989556,92957.0,92936.0,0.09505231]
[1768828920857,0.09989556,92945.0,92934.0,0.09688]
[1768828921155,0.010766,92939.0,92934.0,0.09688]
[1768828921853,0.09989556,92945.0,92929.0,0.00236741]
[1768828921854,0.010766,92940.0,92929.0,0.00236741]
[1768828922440,0.010766,92943.0,92929.0,0.00236741]
[1768828922753,0.010766,92941.0,92929.0,0.00236741]
[1768828924853,0.09079809,92946.0,92929.0,0.00236741]
[1768828924854,0.010766,92939.0,92929.0,0.00236741]
[1768828925556,0.010766,92937.0,92929.0,0.00236741]
[1768828925765,0.19158113,92940.0,92929.0,0.00236741]
[1768828925952,0.010766,92940.0,92929.0,0.00236741]
[1768828926459,0.0001614,92946.0,92930.0,0.38440309]
[1768828926754,0.0001614,92946.0,92936.0,0.21435496]
[1768828928054,0.0001614,92946.0,92938.0,0.010766]
[1768828928462,0.09688,92954.0,92940.0,0.010766]
[1768828928763,0.107645,92954.0,92940.0,0.010766]
[1768828929464,0.010765,92952.0,92937.0,0.010766]
[1768828931763,0.010765,92953.0,92939.0,0.010766]
[1768828932363,0.010765,92952.0,92936.0,0.20358796]
[1768828932862,0.09688,92954.0,92936.0,0.21435496]
[1768828933064,0.08432498,92953.0,92936.0,0.09505231]
[1768828934053,0.08432498,92953.0,92933.0,0.0001614]
[1768828934054,0.010765,92952.0,92940.0,0.28935078]
[1768828934266,0.010764,92955.0,92941.0,0.10853565]
[1768828934556,0.010764,92955.0,92942.0,0.20358796]
[1768828935262,0.010764,92955.0,92937.0,0.10853565]
[1768828935465,0.010764,92955.0,92939.0,0.010766]
[1768828935849,0.010764,92955.0,92941.0,0.010766]
[1768828936058,0.010763,92965.0,92948.0,0.20358796]
[1768828936059,0.09688,92965.0,92948.0,0.20358796]
[1768828936260,0.09688,92965.0,92949.0,0.20358796]
[1768828936261,0.02296734,92963.0,92949.0,0.20358796]
[1768828936449,0.09688,92965.0,92949.0,0.20358796]
[1768828936764,0.09688,92965.0,92949.0,0.09505231]
[1768828937262,0.09688,92966.0,92940.0,0.18081513]
[1768828937469,0.08078732,92958.0,92941.0,0.09505231]
[1768828938549,0.010764,92955.0,92941.0,0.09505231]
[1768828938853,0.010765,92953.0,92941.0,0.09505231]
[1768828940466,0.010764,92956.0,92941.0,0.10581831]
[1768828940665,0.18081513,92960.0,92941.0,0.09505231]
[1768828941360,0.010765,92952.0,92941.0,0.09505231]
[1768828941560,0.010765,92950.0,92937.0,0.107646]
[1768828941764,0.08092159,92952.0,92937.0,0.107646]
[1768828941965,0.010765,92953.0,92937.0,0.107646]
[1768828942165,0.010765,92953.0,92937.0,0.31123396]
[1768828942466,0.18081513,92947.0,92937.0,0.09688]
[1768828942763,0.010766,92942.0,92933.0,0.0001614]
[1768828942967,0.010766,92940.0,92933.0,0.0001614]
[1768828943869,0.010766,92943.0,92933.0,0.0001614]
[1768828944462,0.08092159,92946.0,92933.0,0.0001614]
[1768828944859,0.010766,92943.0,92933.0,0.0001614]
[1768828945256,0.010766,92946.0,92935.0,0.19938543]
[1768828945559,0.010766,92946.0,92936.0,0.19938543]
[1768828945758,0.010766,92945.0,92936.0,0.09101366]
[1768828946168,0.18081513,92950.0,92933.0,0.0001614]
[1768828946467,0.07621533,92949.0,92933.0,0.0001614]
[1768828947069,0.010766,92940.0,92933.0,0.0001614]
[1768828947971,0.010766,92945.0,92933.0,4e-07]
[1768828948274,0.08513763,92945.0,92933.0,4e-07]
[1768828948472,0.010766,92940.0,92933.0,4e-07]
[1768828948971,0.010766,92943.0,92933.0,4e-07]
[1768828949472,0.07482771,92946.0,92933.0,4e-07]
[1768828949857,0.010767,92937.0,92933.0,4e-07]
[1768828950268,0.07466631,92940.0,92927.0,0.09688]
[1768828950458,0.07466631,92938.0,92927.0,0.09688]
[1768828950970,0.07466631,92938.0,92924.0,0.00236753]
[1768828951658,0.010767,92933.0,92924.0,0.00236753]
[1768828952669,0.0963042,92937.0,92924.0,0.00236753]
[1768828952973,0.07807546,92933.0,92924.0,5.3e-07]
[1768828953663,0.010767,92930.0,92924.0,5.3e-07]
[1768828954272,0.08884246,92933.0,92924.0,5.3e-07]
[1768828954467,0.010767,92931.0,92924.0,5.3e-07]
[1768828955174,0.07876098,92937.0,92924.0,5.3e-07]
[1768828955677,0.010767,92932.0,92924.0,5.3e-07]
[1768828956368,0.010767,92931.0,92924.0,5.3e-07]
[1768828956575,0.010767,92930.0,92924.0,5.3e-07]
[1768828957567,0.010768,92928.0,92924.0,5.3e-07]
[1768828957967,0.010768,92926.0,92924.0,5.3e-07]
[1768828958367,0.010768,92926.0,92919.0,0.09688]
[1768828958674,0.010766,92938.0,92904.0,0.00236804]
[1768828958675,0.010769,92917.0,92904.0,0.00236804]
[1768828959281,0.010769,92917.0,92893.0,0.07741575]
[1768828959282,0.010769,92917.0,92838.0,0.38618872]
[1768828959283,0.1077,92904.0,92838.0,0.38618872]
[1768828959488,0.18081513,92848.0,92829.0,0.00236996]
[1768828959683,0.09688,92850.0,92825.0,0.09293296]
[1768828959880,0.010776,92857.0,92831.0,0.010779]
[1768828960066,0.03201892,92856.0,92831.0,0.09293296]
[1768828960268,0.09624261,92910.0,92850.0,0.09293296]
[1768828960269,0.010773,92878.0,92850.0,0.09293296]
[1768828960574,0.03179616,92877.0,92852.0,0.09293296]
[1768828960768,0.03179616,92876.0,92852.0,0.09293296]
[1768828961071,0.09688,92884.0,92860.0,0.18081513]
[1768828961072,0.03179616,92875.0,92860.0,0.18081513]
[1768828961273,0.010772,92888.0,92867.0,0.09293296]
[1768828961479,0.010772,92894.0,92871.0,0.09293296]
[1768828961678,0.03153504,92893.0,92873.0,0.09293296]
[1768828961977,0.010771,92895.0,92873.0,0.09293296]
[1768828962172,0.18081513,92890.0,92874.0,0.00016149]
[1768828962377,0.18081513,92883.0,92875.0,0.09692]
[1768828962581,0.09692,92898.0,92875.0,0.09692]
[1768828962877,0.18081513,92890.0,92875.0,0.09692]
[1768828963180,0.09692,92905.0,92881.0,0.09293296]
[1768828963378,0.18081513,92900.0,92883.0,0.09293296]
[1768828963982,0.07684964,92948.0,92886.0,0.20185079]
[1768828964169,0.18081513,92920.0,92895.0,0.09293296]
[1768828964374,0.03131797,92919.0,92896.0,0.09293296]
[1768828964679,0.010767,92930.0,92910.0,0.09293296]
[1768828964871,0.010767,92930.0,92911.0,0.09293296]
[1768828964872,0.19158213,92930.0,92911.0,0.09293296]
[1768828965077,0.010767,92930.0,92911.0,0.09293296]
[1768828965377,0.18081513,92950.0,92921.0,0.09293296]
[1768828965675,0.0131319,92949.0,92926.0,0.20185079]
[1768828965984,0.010766,92943.0,92928.0,0.09293296]
[1768828966373,0.36163026,92940.0,92900.0,0.10370396]
[1768828966571,0.18081513,92920.0,92904.0,0.09293296]
[1768828966975,0.010768,92924.0,92912.0,0.79599586]
[1768828967178,0.010768,92924.0,92905.0,0.09293296]
[1768828967179,0.010768,92920.0,92905.0,0.09293296]
[1768828967373,0.010768,92920.0,92912.0,0.09692]
[1768828967576,0.010768,92925.0,92911.0,0.79599586]
[1768828967777,0.010768,92925.0,92905.0,0.09293296]
[1768828967778,0.010768,92925.0,92910.0,0.09692]
[1768828967985,0.0109294,92925.0,92910.0,0.18985296]
[1768828968282,0.0109294,92925.0,92911.0,0.88892882]
[1768828968484,0.0109294,92925.0,92912.0,0.79599586]
[1768828969673,0.010766,92939.0,92917.0,0.09293296]
[1768828969869,0.010766,92944.0,92921.0,0.10891783]
[1768828970069,0.010765,92948.0,92924.0,0.010768]
[1768828970269,0.010765,92948.0,92925.0,0.10891783]
[1768828970473,0.010765,92948.0,92927.0,0.79599586]
[1768828970669,0.010765,92948.0,92925.0,0.10891783]
[1768828970878,0.010765,92948.0,92930.0,0.79599586]
[1768828971281,0.0023669,92949.0,92919.0,0.010768]
[1768828971484,0.010767,92937.0,92927.0,0.0001614]
[1768828971683,0.010767,92937.0,92928.0,0.09692]
[1768828971877,0.010767,92937.0,92930.0,0.17085786]
[1768828972078,0.010767,92937.0,92927.0,0.0001614]
[1768828972079,0.0023669,92949.0,92929.0,0.20185079]
[1768828972284,0.010765,92953.0,92932.0,0.20185079]
[1768828972483,0.010765,92953.0,92934.0,0.20185079]
[1768828972683,0.09692,92958.0,92930.0,0.107687]
[1768828972684,0.010764,92957.0,92936.0,0.09432901]
[1768828972885,0.010764,92962.0,92938.0,0.09432901]
[1768828973090,0.09692,92966.0,92941.0,0.09432901]
[1768828973384,0.09692,92966.0,92942.0,0.19124901]
[1768828973587,0.010764,92959.0,92943.0,0.09432901]
[1768828973775,0.010764,92956.0,92943.0,0.09432901]
[1768828974378,0.09692,92966.0,92943.0,0.09432901]
[1768828974379,0.010764,92960.0,92943.0,0.09432901]
[1768828974780,0.09692,92966.0,92943.0,0.09432901]
[1768828976183,0.09692,92966.0,92943.0,0.0919616]
[1768828976388,0.107683,92966.0,92943.0,0.0919616]
[1768828976582,0.010765,92948.0,92943.0,0.0919616]
[1768828976783,0.010766,92941.0,92933.0,0.09692]
[1768828977176,0.010766,92944.0,92933.0,0.09692]
[1768828977383,0.010766,92945.0,92933.0,0.09692]
[1768828977578,0.010766,92945.0,92928.0,0.11438634]
[1768828977782,0.010766,92945.0,92929.0,0.09692]
[1768828977989,0.010766,92945.0,92930.0,0.11201779]
[1768828978691,0.010766,92945.0,92931.0,0.09432901]
[1768828979686,0.010765,92952.0,92937.0,0.09432901]
[1768828980102,0.09692,92963.0,92940.0,0.09432901]
[1768828980291,0.03077126,92962.0,92942.0,0.09432901]
[1768828980492,0.010764,92956.0,92942.0,0.09432901]
[1768828980688,0.32045882,92970.0,92943.0,0.20871535]
[1768828980893,0.03077211,92963.0,92946.0,0.09432901]
[1768828981090,0.03077211,92962.0,92946.0,0.09432901]
[1768828981296,0.09688,92969.0,92946.0,0.09432901]
[1768828981491,0.03076946,92963.0,92948.0,0.09432901]
[1768828981697,0.01312951,92964.0,92949.0,0.09432901]
[1768828981891,0.00855195,92979.0,92952.0,0.11438634]
[1768828982098,0.03077074,92978.0,92957.0,0.09432901]
[1768828982297,0.03077074,92977.0,92957.0,0.09432901]
[1768828982606,0.010763,92966.0,92957.0,0.09432901]
[1768828983190,0.09688,92979.0,92957.0,0.09432901]
[1768828983393,0.03075719,92978.0,92957.0,0.09432901]
[1768828983686,0.03075719,92977.0,92957.0,0.09432901]
[1768828983892,0.04151919,92976.0,92957.0,0.09432901]
[1768828984093,0.03075719,92975.0,92957.0,0.09432901]
[1768828984292,0.010763,92965.0,92957.0,0.09196109]
[1768828984495,0.010762,92974.0,92957.0,9e-08]
[1768828984687,0.03060729,92973.0,92957.0,9e-08]
[1768828984891,0.03060729,92972.0,92957.0,9e-08]
[1768828985096,0.03060729,92971.0,92957.0,9e-08]
[1768828985291,0.03060729,92971.0,92953.0,0.09688]
[1768828985292,0.03060729,92970.0,92953.0,0.09688]
[1768828985495,0.010764,92960.0,92953.0,0.09688]
[1768828985700,0.010764,92963.0,92953.0,0.09688]
[1768828985905,0.03547134,92962.0,92953.0,0.09688]
[1768828986204,0.03547134,92961.0,92953.0,0.09451094]
[1768828986405,0.010764,92963.0,92953.0,0.09451094]
[1768828986604,0.03546644,92962.0,92953.0,0.09451094]
[1768828986800,0.03546644,92961.0,92953.0,0.09451094]
[1768828987000,0.010764,92963.0,92953.0,0.09451094]
[1768828987200,0.03546644,92962.0,92953.0,0.09451094]
[1768828987401,0.04623044,92961.0,92953.0,0.09451094]
[1768828987606,0.010764,92961.0,92953.0,0.09451094]
[1768828987808,0.010763,92964.0,92954.0,0.09432901]
[1768828988105,0.03546206,92963.0,92954.0,0.20871535]
[1768828988408,0.03546206,92962.0,92954.0,0.20871535]
[1768828988706,0.03546206,92961.0,92954.0,0.20871535]
[1768828988907,0.010764,92963.0,92954.0,0.20871535]
[1768828989107,0.010764,92961.0,92955.0,0.09432901]
[1768828990003,0.010762,92973.0,92955.0,0.09432901]
[1768828990306,0.03545512,92972.0,92955.0,0.09432901]
[1768828990610,0.03545512,92971.0,92955.0,0.09432901]
[1768828990802,0.03545512,92970.0,92955.0,0.09432901]
[1768828991003,0.010764,92963.0,92955.0,0.09432901]
[1768828991205,0.03545512,92962.0,92955.0,0.09432901]
[1768828991406,0.010762,92977.0,92957.0,0.09432901]
[1768828991606,0.010762,92972.0,92962.0,0.09432901]
[1768828991907,0.010762,92972.0,92953.0,0.09451094]
[1768828991908,0.015762,92980.0,92967.0,0.11438634]
[1768828992111,0.07684964,92988.0,92967.0,0.11438634]
[1768828992502,0.010762,92975.0,92964.0,0.09688]
[1768828993412,0.010762,92977.0,92964.0,0.09688]
[1768828993798,0.010762,92977.0,92965.0,0.09432901]
[1768828994212,0.010762,92974.0,92965.0,0.09195944]
[1768828994803,0.010762,92972.0,92965.0,0.20634578]
[1768828995203,0.010762,92975.0,92965.0,0.20634578]
[1768828995811,0.010762,92978.0,92966.0,0.11438634]
[1768828996111,0.08761064,92988.0,92966.0,0.11438634]
[1768828996312,0.08761064,92988.0,92967.0,0.09432901]
[1768828996520,0.010762,92975.0,92967.0,0.09432901]
[1768828997409,0.08761064,92988.0,92967.0,0.09432901]
[1768828997805,0.08761064,92988.0,92967.0,0.20871535]
[1768828999118,0.010762,92979.0,92968.0,0.11438634]
[1768828999318,0.010762,92980.0,92969.0,0.09432901]
[1768828999508,0.010761,92983.0,92967.0,0.010763]
[1768829000014,0.010761,92981.0,92967.0,0.010763]
[1768829000209,0.010761,92981.0,92964.0,0.107643]
[1768829000516,0.010761,92981.0,92964.0,0.10527406]
[1768829000913,0.17609552,92989.0,92964.0,0.10527406]
[1768829000914,0.11120767,92988.0,92964.0,0.09451106]
[1768829001118,0.010762,92974.0,92964.0,0.09451106]
[1768829001615,0.07921552,92989.0,92965.0,0.20871535]
[1768829001818,0.010761,92987.0,92973.0,0.20871535]
[1768829002116,0.07684964,92992.0,92979.0,0.11438634]
[1768829002416,0.01,93000.0,92978.0,0.0900715]
[1768829002807,0.010761,92987.0,92976.0,0.09688]
[1768829003321,0.01076,92991.0,92973.0,0.09688]
[1768829003620,0.010761,92983.0,92973.0,0.09688]
[1768829003808,0.03286933,92982.0,92972.0,0.00016131]
[1768829004013,0.03286933,92981.0,92973.0,0.09688]
[1768829004212,0.03286933,92980.0,92973.0,0.09688]
[1768829004413,0.010761,92983.0,92973.0,0.09688]
[1768829004613,0.010761,92981.0,92973.0,0.09688]
[1768829004813,0.03286294,92980.0,92973.0,0.09688]
[1768829005013,0.010761,92984.0,92973.0,0.09688]
[1768829005222,0.0328628,92983.0,92973.0,0.09688]
[1768829005419,0.0328628,92982.0,92973.0,0.09688]
[1768829005619,0.0328628,92981.0,92973.0,0.09688]
[1768829005810,0.010761,92984.0,92973.0,0.09688]
[1768829006010,0.03285784,92983.0,92973.0,0.09688]
[1768829006211,0.03285784,92982.0,92973.0,0.09688]
[1768829006510,0.03285784,92981.0,92973.0,0.09688]
[1768829006711,0.010761,92984.0,92973.0,0.09688]
[1768829006911,0.032854,92983.0,92973.0,0.09688]
[1768829007114,0.032854,92982.0,92973.0,0.09688]
[1768829007307,0.010761,92984.0,92973.0,0.09688]
[1768829007308,0.032854,92981.0,92973.0,0.09688]
[1768829007520,0.010761,92984.0,92973.0,0.09688]
[1768829007821,0.03285375,92983.0,92973.0,0.09688]
[1768829008019,0.03285375,92982.0,92973.0,0.09688]
[1768829008221,0.010762,92979.0,92973.0,0.09688]
[1768829008522,0.010764,92957.0,92945.0,0.01416799]
[1768829008818,0.010763,92969.0,92930.0,0.01403383]
[1768829008819,0.09177794,92966.0,92930.0,0.01403383]
[1768829009121,0.09177794,92966.0,92914.0,0.05831619]
[1768829009122,0.010765,92954.0,92937.0,0.010766]
[1768829009523,0.010765,92954.0,92939.0,0.010766]
[1768829009719,0.010765,92954.0,92931.0,0.20443463]
[1768829009720,0.03285368,92953.0,92931.0,0.107647]
[1768829009914,0.04361868,92952.0,92931.0,0.09688]
[1768829010115,0.010765,92950.0,92935.0,0.010767]
[1768829010311,0.010766,92946.0,92932.0,0.10758993]
[1768829010516,0.0328527,92945.0,92929.0,0.11299376]
[1768829010711,0.1246328,92944.0,92927.0,0.09688]
[1768829010923,0.03285486,92943.0,92925.0,0.00011426]
[1768829011123,0.03285486,92942.0,92925.0,0.00011426]
[1768829011324,0.010766,92939.0,92925.0,0.00011426]
[1768829011523,0.09177794,92944.0,92925.0,0.01088226]
[1768829011825,0.010766,92942.0,92925.0,0.00011426]
[1768829012121,0.010766,92942.0,92918.0,0.09688]
[1768829012122,0.20000834,92937.0,92911.0,0.11299376]
[1768829012316,0.010767,92929.0,92910.0,0.01077]
[1768829012820,0.010766,92944.0,92925.0,0.11299376]
[1768829013019,0.010766,92944.0,92926.0,0.010768]
[1768829013020,4e-07,92929.0,92926.0,0.010768]
[1768829013325,0.09688,92943.0,92926.0,0.010768]
[1768829013825,0.010766,92944.0,92926.0,0.010768]
[1768829014025,0.010765,92952.0,92933.0,0.010767]
[1768829014322,0.09688,92951.0,92935.0,0.010767]
[1768829014816,0.09688,92951.0,92934.0,0.11315516]
[1768829015225,0.107645,92951.0,92934.0,0.11315516]
[1768829015426,0.09688,92951.0,92934.0,0.11315516]
[1768829016029,0.010765,92949.0,92934.0,0.11315516]
[1768829016229,0.09688,92951.0,92934.0,0.11315516]
[1768829016731,0.010765,92947.0,92934.0,0.11315516]
[1768829016928,0.010767,92937.0,92934.0,4e-07]
[1768829017116,0.010767,92937.0,92923.0,0.11299376]
[1768829017430,0.010767,92937.0,92924.0,0.1075934]
[1768829017923,0.09177794,92944.0,92916.0,0.11299376]
[1768829018230,0.09177794,92941.0,92917.0,0.11299376]
[1768829018424,0.0001614,92939.0,92917.0,0.11299376]
[1768829018925,0.0001614,92939.0,92918.0,0.22060279]
[1768829019129,0.0001614,92939.0,92919.0,0.11299376]
[1768829019715,0.010767,92936.0,92919.0,0.11299376]
[1768829020929,0.0001614,92939.0,92919.0,0.12376176]
[1768829021126,0.0001614,92939.0,92921.0,0.010768]
[1768829021426,0.0001614,92939.0,92919.0,0.11299376]
[1768829021427,0.010767,92934.0,92919.0,0.11299376]
[1768829022919,0.010767,92937.0,92920.0,0.12405576]
[1768829023226,0.1082304,92944.0,92916.0,0.09688]
[1768829023227,0.010765,92947.0,92930.0,0.22079939]
[1768829023425,0.010765,92953.0,92933.0,0.11328776]
[1768829023626,0.09688,92952.0,92933.0,0.11328776]
[1768829023927,0.09688,92952.0,92934.0,0.12405476]
[1768829024128,0.10256033,92957.0,92940.0,0.010766]
[1768829024326,0.09688,92954.0,92940.0,0.12405376]
[1768829024628,0.03045388,92953.0,92940.0,0.11328776]
[1768829024832,0.03045388,92952.0,92940.0,0.11328776]
[1768829025033,0.09688,92954.0,92940.0,0.11328776]
[1768829025334,0.03045363,92953.0,92940.0,0.11328776]
[1768829025538,0.010765,92953.0,92940.0,0.11328776]
[1768829026436,0.010765,92951.0,92939.0,0.0001614]
[1768829027439,0.09688,92954.0,92940.0,0.010766]
[1768829027634,0.09688,92954.0,92939.0,0.0001614]
[1768829028136,0.010765,92951.0,92939.0,0.0001614]
[1768829028436,0.30139259,92954.0,92939.0,4e-07]
[1768829028624,0.010765,92947.0,92939.0,4e-07]
[1768829028820,0.10256133,92950.0,92939.0,4e-07]
[1768829029229,0.010765,92950.0,92939.0,4e-07]
[1768829031230,0.18883773,92954.0,92939.0,4e-07]
[1768829031430,0.09179633,92953.0,92939.0,4e-07]
[1768829032343,0.010765,92947.0,92939.0,4e-07]
[1768829033036,0.010765,92950.0,92939.0,4e-07]
[1768829034036,0.010765,92948.0,92939.0,4e-07]
[1768829034427,0.20607612,92953.0,92939.0,4e-07]
[1768829034627,0.09953533,92951.0,92939.0,4e-07]
[1768829034838,0.010765,92948.0,92939.0,4e-07]
[1768829035037,0.010765,92946.0,92939.0,4e-07]
[1768829038538,0.010766,92944.0,92939.0,4e-07]
[1768829038740,0.09953533,92942.0,92939.0,4e-07]
[1768829039238,0.11030133,92942.0,92939.0,4e-07]
[1768829039437,0.010766,92939.0,92926.0,0.09688]
[1768829039643,0.010766,92938.0,92926.0,0.09688]
[1768829040033,0.11030133,92941.0,92927.0,0.010768]
[1768829040242,0.010765,92947.0,92934.0,0.12770027]
[1768829040437,0.03063535,92946.0,92934.0,0.08850027]
[1768829040627,0.03063535,92945.0,92934.0,0.08850027]
[1768829040835,0.0001614,92943.0,92937.0,0.010766]
[1768829041037,0.03063535,92942.0,92934.0,0.06846627]
[1768829041231,0.09953533,92951.0,92934.0,0.06846627]
[1768829041438,0.010765,92950.0,92934.0,0.06846627]
[1768829041838,0.11030033,92951.0,92936.0,0.010767]
[1768829042241,0.010765,92949.0,92936.0,0.010767]
[1768829042440,0.010765,92949.0,92934.0,0.06846627]
[1768829042441,0.09953533,92951.0,92935.0,0.010767]
[1768829043048,0.09953533,92951.0,92934.0,0.06846627]
[1768829043248,0.010766,92946.0,92934.0,0.06846627]
[1768829043450,0.010766,92946.0,92932.0,0.010767]
[1768829044334,0.010766,92946.0,92934.0,0.010767]
[1768829044545,0.09953533,92951.0,92934.0,0.010767]
[1768829044734,0.09953533,92951.0,92933.0,0.11693327]
[1768829045346,0.11030233,92936.0,92917.0,0.09688]
[1768829045649,0.09953533,92932.0,92918.0,0.09688]
[1768829045949,0.09953533,92931.0,92918.0,0.09688]
[1768829047054,0.010768,92928.0,92918.0,0.09688]
[1768829047444,0.010768,92928.0,92915.0,0.010769]
[1768829047646,0.09953533,92928.0,92914.0,0.09688]
[1768829047841,0.09953533,92928.0,92916.0,0.10761424]
[1768829048046,0.09953533,92928.0,92914.0,0.09688]
[1768829048241,0.09953533,92928.0,92915.0,0.10761772]
[1768829048954,0.09953533,92927.0,92907.0,0.13085519]
[1768829049156,0.09953533,92924.0,92907.0,0.01392192]
[1768829049354,0.09953533,92924.0,92906.0,0.01077]
[1768829049568,0.09953533,92916.0,92897.0,0.09688]
[1768829049750,0.09953533,92916.0,92898.0,0.11693327]
[1768829050056,0.11030433,92916.0,92901.0,0.010771]
[1768829050254,0.09953533,92916.0,92901.0,0.010771]
[1768829050453,0.09953533,92916.0,92898.0,0.12770427]
[1768829050752,0.01077,92910.0,92899.0,0.10762524]
[1768829050957,0.010769,92913.0,92899.0,0.10762524]
[1768829051156,0.010769,92913.0,92897.0,0.107651]
[1768829051453,0.09953533,92916.0,92899.0,0.010771]
[1768829051756,0.010769,92917.0,92903.0,0.11693327]
[1768829052151,0.11030433,92920.0,92902.0,0.01077]
[1768829052959,0.11030433,92920.0,92899.0,0.11693327]
[1768829053160,0.29121676,92920.0,92899.0,0.11693327]
[1768829053358,0.29121676,92920.0,92903.0,0.01077]
[1768829053560,0.010769,92916.0,92900.0,0.11840088]
[1768829053759,0.010769,92916.0,92902.0,0.01077]
[1768829054255,0.010767,92930.0,92903.0,0.10635656]
[1768829054456,0.09688,92953.0,92930.0,0.09558656]
[1768829054661,0.010765,92951.0,92930.0,0.09558656]
[1768829054861,0.107685,92952.0,92936.0,0.010767]
[1768829055062,0.107685,92952.0,92938.0,0.010766]
[1768829055460,0.18091243,92950.0,92931.0,0.09558656]
[1768829055658,0.010766,92944.0,92931.0,0.09558656]
[1768829055965,0.18091243,92950.0,92936.0,0.0001614]
[1768829056163,0.010766,92944.0,92928.0,0.010767]
[1768829056363,0.010766,92944.0,92931.0,0.10759571]
[1768829056667,0.010766,92944.0,92928.0,0.010767]
[1768829056968,0.010766,92944.0,92924.0,0.09688]
[1768829056969,0.0109264,92947.0,92930.0,0.010767]
[1768829057154,0.0001614,92947.0,92929.0,0.22453246]
[1768829057354,0.0001614,92947.0,92931.0,0.11693327]
[1768829058063,0.0001614,92947.0,92935.0,0.010767]
[1768829058260,0.0001614,92947.0,92941.0,0.010766]
[1768829058450,0.0001614,92947.0,92938.0,0.010766]
[1768829058649,0.0001614,92947.0,92940.0,0.010766]
[1768829058853,0.0001614,92947.0,92936.0,0.010767]
[1768829059261,0.0001614,92947.0,92935.0,0.11693327]
[1768829059467,0.0001614,92947.0,92931.0,0.010767]
[1768829059761,0.0001614,92947.0,92924.0,0.19246656]
[1768829059762,0.0001614,92947.0,92938.0,0.010766]